lending/lending_fUSD_20251018
["ID","MTS","AMOUNT","RATE_DAILY","PERIOD"]
[391774526,1760795451438,-500.0,0.00030663,2]
[391774527,1760795451448,-503.37112382,0.00030663,2]
[391774528,1760795451458,-500.0,0.00030663,2]
[391774529,1760795451468,-500.0,0.00030663,2]
[391774530,1760795451478,-500.0,0.00030663,2]
[391774531,1760795451487,-206.19604577,0.00030663,2]
[391774532,1760795451497,-635.58829631,0.00030663,2]
[391774533,1760795451508,-500.0,0.00030663,2]
[391774534,1760795451517,-501.68226603,0.00030663,2]
[391774535,1760795451527,-501.23932434,0.00030663,2]
[391774536,1760795451537,-500.0,0.00030663,2]
[391774537,1760795451547,-501.79042066,0.00030663,2]
[391774538,1760795451557,-501.6080383,0.00030663,2]
[391774539,1760795451567,-500.0,0.00030663,2]
[391774540,1760795451576,-475.40397956,0.00030663,30]
[391774541,1760795451586,-500.0,0.00030663,2]
[391774542,1760795451595,-500.0,0.00030663,2]
[391774543,1760795451605,-500.79678305,0.00030663,2]
[391774544,1760795451615,-500.0,0.00030663,2]
[391774545,1760795451628,-500.18413796,0.00030663,2]
[391774546,1760795451638,-502.03002341,0.00030664,2]
[391774547,1760795451648,-506.05642573,0.00030664,2]
[391774548,1760795451657,-500.0,0.00030664,2]
[391774549,1760795451667,-500.0,0.00030664,2]
[391774550,1760795451677,-500.0,0.00030664,2]
[391774551,1760795451688,-500.0,0.00030664,2]
[391774552,1760795451698,-500.0,0.00030664,2]
[391774553,1760795451708,-14594.1045991,0.00030665,2]
[391774554,1760795451718,-243912.1079938,0.00030665,2]
[391774555,1760795451727,-13441.6413636,0.00030665,2]
[391774556,1760795451737,-35043.7277995,0.00030665,2]
[391774557,1760795451746,-151.0,0.00030665,30]
[391774558,1760795451760,-151.0,0.00030665,30]
[391774559,1760795451770,-151.0,0.00030665,30]
[391774560,1760795451780,-151.0,0.00030665,30]
[391774561,1760795451790,-151.0,0.00030665,30]
[391774562,1760795451801,-151.0,0.00030665,30]
[391774563,1760795451814,-151.0,0.00030665,30]
[391774564,1760795451824,-151.0,0.00030665,30]
[391774565,1760795451835,-500.0,0.00030665,15]
[391774566,1760795451845,-152.409988,0.00030665,30]
[391774567,1760795451855,-151.0,0.00030665,30]
[391774568,1760795451865,-151.56895,0.00030665,30]
[391774569,1760795451874,-151.0,0.00030665,30]
[391774570,1760795451884,-159.399545,0.00030665,30]
[391774571,1760795451894,-151.0,0.00030665,30]
[391774572,1760795451904,-151.0,0.00030665,30]
[391774573,1760795451914,-151.0,0.00030665,30]
[391774574,1760795451924,-151.0,0.00030665,30]
[391774575,1760795451934,-151.0,0.00030665,30]
[391774576,1760795451944,-151.0,0.00030665,30]
[391774577,1760795451954,-151.0,0.00030665,30]
[391774578,1760795451964,-151.0,0.00030665,30]
[391774579,1760795451973,-151.0,0.00030665,30]
[391774580,1760795451983,-151.0,0.00030665,30]
[391774581,1760795451992,-151.0,0.00030665,30]
[391774582,1760795452002,-151.0,0.00030665,30]
[391774583,1760795452015,-151.0,0.00030665,30]
[391774584,1760795452025,-151.0,0.00030665,30]
[391774585,1760795452035,-151.0,0.00030665,30]
[391774586,1760795452044,-151.0,0.00030665,30]
[391774587,1760795452054,-152.419336,0.00030665,30]
[391774588,1760795452064,-151.0,0.00030665,30]
[391774589,1760795452074,-157.544389,0.00030665,30]
[391774590,1760795452083,-151.0,0.00030665,30]
[391774591,1760795452093,-157.406209,0.00030665,30]
[391774592,1760795452103,-151.469439,0.00030665,30]
[391774593,1760795452112,-187.495025,0.00030665,30]
[391774594,1760795452122,-187.495025,0.00030665,30]
[391774595,1760795452132,-187.495025,0.00030665,30]
[391774596,1760795452142,-187.495025,0.00030665,30]
[391774597,1760795452152,-151.949657,0.00030665,30]
[391774598,1760795452162,-151.0,0.00030665,30]
[391774599,1760795452172,-151.0,0.00030665,30]
[391774600,1760795452182,-151.0,0.00030665,30]
[391774601,1760795452191,-160.036113,0.00030665,30]
[391774602,1760795452206,-151.0,0.00030665,30]
[391774603,1760795452216,-152.341927,0.00030665,14]
[391774604,1760795452226,-151.0,0.00030665,30]
[391774605,1760795452236,-151.726235,0.00030665,30]
[391774606,1760795452247,-151.0,0.00030665,30]
[391774607,1760795452259,-151.0,0.00030665,30]
[391774608,1760795452269,-151.00000079,0.00030665,30]
[391774609,1760795452279,-151.0,0.00030665,30]
[391774610,1760795452288,-168.45092,0.00030665,30]
[391774611,1760795452298,-168.45092,0.00030665,30]
[391774612,1760795452307,-168.45092,0.00030665,30]
[391774613,1760795452317,-168.45092,0.00030665,30]
[391774614,1760795452327,-782.169204,0.00030665,30]
[391774615,1760795452337,-160.569946,0.00030665,30]
[391774616,1760795452347,-151.0,0.00030665,30]
[391774617,1760795452358,-782.169204,0.00030665,30]
[391774618,1760795452368,-160.569946,0.00030665,30]
[391774619,1760795452378,-151.0,0.00030665,30]
[391774620,1760795452388,-782.169204,0.00030665,30]
[391774621,1760795452398,-160.569946,0.00030665,30]
[391774622,1760795452411,-782.169204,0.00030665,30]
[391774623,1760795452421,-160.569946,0.00030665,30]
[391774624,1760795452431,-151.0,0.00030665,30]
[391774625,1760795452441,-627.82169,0.00030665,30]
[391774626,1760795452450,-627.82169,0.00030665,30]
[391774627,1760795452460,-627.82169,0.00030665,30]
[391774628,1760795452470,-627.82169,0.00030665,30]
[391774629,1760795452480,-151.0,0.00030665,30]
[391774630,1760795452489,-153.845601,0.00030665,30]
[391774631,1760795452499,-151.0,0.00030665,30]
[391774632,1760795452509,-151.0,0.00030665,30]
[391774633,1760795452519,-151.0,0.00030665,30]
[391774634,1760795452528,-160.87620032,0.00030665,30]
[391774635,1760795452538,-151.0,0.00030665,30]
[391774636,1760795452548,-151.0,0.00030665,30]
[391774637,1760795452557,-266.81287,0.00030665,30]
[391774638,1760795452567,-240.63265,0.00030665,30]
[391774639,1760795452576,-151.0,0.00030665,30]
[391774640,1760795452586,-151.0,0.00030665,30]
[391774641,1760795452595,-300.0,0.00030683,10]
[391774642,1760795452608,-176.94942203,0.00030684,2]
[391774643,1760795452617,-917.19,0.00030684,2]
[391774644,1760795452627,-500.0,0.00030684,2]
[391774645,1760795452637,-421.75369567,0.00030684,2]
[391774646,1760795452646,-167.60051922,0.00030684,2]
[391774647,1760795452656,-500.0,0.00030684,2]
[391774648,1760795452666,-500.0,0.00030684,2]
[391774649,1760795452676,-500.0,0.00030684,2]
[391774650,1760795452686,-500.0,0.00030684,2]
[391774651,1760795452695,-500.0,0.00030684,2]
[391774652,1760795452705,-245.2,0.00030684,2]
[391774653,1760795452715,-500.0,0.00030684,2]
[391774654,1760795452725,-500.0,0.00030684,2]
[391774655,1760795452735,-500.0,0.00030684,2]
[391774656,1760795452744,-218.56,0.00030684,2]
[391774657,1760795452758,-446.23,0.00030684,2]
[391774658,1760795452768,-500.0,0.00030684,2]
[391774659,1760795452778,-500.0,0.00030684,2]
[391774660,1760795452788,-1839.66,0.00030684,2]
[391774661,1760795452797,-500.0,0.00030684,2]
[391774662,1760795452807,-2145.36,0.00030684,2]
[391774663,1760795452817,-500.0,0.00030684,2]
[391774664,1760795452826,-307.93,0.00030684,2]
[391774665,1760795452836,-544.58,0.00030684,2]
[391774666,1760795452845,-500.0,0.00030684,2]
[391774667,1760795452855,-222.0454702,0.00030684,2]
[391774668,1760795452864,-500.0,0.00030684,2]
[391774669,1760795452873,-218.18,0.00030684,2]
[391774670,1760795452883,-535.97,0.00030684,2]
[391774671,1760795452893,-500.0,0.00030684,2]
[391774672,1760795452903,-481.14170722,0.00030684,2]
[391774673,1760795452912,-898.55,0.00030684,2]
[391774674,1760795452921,-300.0,0.00030684,2]
[391774675,1760795452931,-500.0,0.00030684,2]
[391774676,1760795452940,-500.0,0.00030684,2]
[391774677,1760795452950,-500.0,0.00030684,2]
[391774678,1760795452959,-500.0,0.00030684,2]
[391774679,1760795452969,-500.0,0.00030684,2]
[391774680,1760795452978,-725.62,0.00030684,2]
[391774681,1760795452997,-500.0,0.00030684,2]
[391774682,1760795453007,-500.0,0.00030684,2]
[391774683,1760795453019,-359.2693875,0.00030684,2]
[391774684,1760795453028,-500.0,0.00030684,2]
[391774685,1760795453038,-325.60618833,0.00030684,2]
[391774686,1760795453049,-500.0,0.00030684,2]
[391774687,1760795453059,-500.0,0.00030684,2]
[391774688,1760795453068,-500.0,0.00030684,2]
[391774689,1760795453078,-500.0,0.00030684,2]
[391774690,1760795453088,-304.2887547,0.00030684,2]
[391774691,1760795453097,-518.1809788,0.00030684,2]
[391774692,1760795453108,-500.0,0.00030684,2]
[391774693,1760795453118,-585.9,0.00030684,2]
[391774694,1760795453128,-500.0,0.00030684,2]
[391774695,1760795453138,-500.0,0.00030684,2]
[391774696,1760795453148,-662.69,0.00030684,2]
[391774697,1760795453158,-500.0,0.00030684,2]
[391774698,1760795453168,-500.0,0.00030684,2]
[391774699,1760795453178,-500.0,0.00030684,2]
[391774700,1760795453187,-506.44,0.00030684,2]
[391774701,1760795453197,-500.0,0.00030684,2]
[391774702,1760795453207,-280.99175948,0.00030684,2]
[391774703,1760795453216,-524.33,0.00030684,2]
[391774704,1760795453227,-500.0,0.00030684,2]
[391774705,1760795453236,-535.13,0.00030684,2]
[391774706,1760795453247,-607.31424085,0.00030684,2]
[391774707,1760795453259,-500.0,0.00030684,2]
[391774708,1760795453269,-500.0,0.00030684,2]
[391774709,1760795453279,-500.0,0.00030684,2]
[391774710,1760795453289,-272.87,0.00030684,2]
[391774711,1760795453299,-154.27,0.00030684,2]
[391774712,1760795453309,-500.0,0.00030684,2]
[391774713,1760795453318,-618.65398963,0.00030684,2]
[391774714,1760795453328,-500.0,0.00030684,2]
[391774715,1760795453338,-500.0,0.00030684,2]
[391774716,1760795453348,-209.41,0.00030684,2]
[391774717,1760795453358,-500.0,0.00030684,2]
[391774718,1760795453369,-359.19,0.00030684,2]
[391774719,1760795453379,-500.0,0.00030684,2]
[391774720,1760795453389,-500.0,0.00030684,2]
[391774721,1760795453399,-500.0,0.00030684,2]
[391774722,1760795453409,-500.0,0.00030684,2]
[391774723,1760795453419,-500.0,0.00030684,2]
[391774724,1760795453430,-517.9467384,0.00030684,2]
[391774725,1760795453439,-500.0,0.00030684,2]
[391774726,1760795453449,-500.0,0.00030684,2]
[391774727,1760795453458,-500.0,0.00030684,2]
[391774728,1760795453468,-500.0,0.00030684,2]
[391774729,1760795453478,-500.0,0.00030684,2]
[391774730,1760795453487,-500.0,0.00030684,2]
[391774731,1760795453497,-500.0,0.00030684,2]
[391774732,1760795453507,-500.0,0.00030684,2]
[391774733,1760795453517,-500.0,0.00030684,2]
[391774734,1760795453527,-500.0,0.00030684,2]
[391774735,1760795453537,-500.0,0.00030684,2]
[391774736,1760795453548,-645.92533635,0.00030684,2]
[391774737,1760795453558,-729.42,0.00030684,2]
[391774738,1760795453568,-500.0,0.00030684,2]
[391774739,1760795453578,-500.0,0.00030684,2]
[391774740,1760795453587,-249.55,0.00030684,2]
[391774741,1760795453597,-266.56,0.00030684,2]
[391774742,1760795453607,-414.81560048,0.00030684,2]
[391774743,1760795453617,-829.6,0.00030684,2]
[391774744,1760795453626,-500.0,0.00030684,2]
[391774745,1760795453636,-500.0,0.00030684,2]
[391774746,1760795453647,-466.37642,0.00030684,2]
[391774747,1760795453657,-500.0,0.00030684,2]
[391774748,1760795453667,-500.0,0.00030684,2]
[391774749,1760795453677,-500.0,0.00030684,2]
[391774750,1760795453687,-500.0,0.00030684,2]
[391774751,1760795453697,-500.0,0.00030684,2]
[391774752,1760795453706,-500.0,0.00030684,2]
[391774753,1760795453716,-500.0,0.00030684,2]
[391774754,1760795453725,-500.0,0.00030684,2]
[391774755,1760795453735,-705.11,0.00030684,2]
[391774756,1760795453745,-525.14503845,0.00030684,2]
[391774757,1760795453756,-500.0,0.00030684,2]
[391774758,1760795453767,-500.0,0.00030684,2]
[391774759,1760795453777,-415.75678932,0.00030684,2]
[391774760,1760795453787,-500.0,0.00030684,2]
[391774761,1760795453797,-500.0,0.00030684,2]
[391774762,1760795453806,-500.0,0.00030684,2]
[391774763,1760795453817,-500.0,0.00030684,2]
[391774764,1760795453826,-500.0,0.00030684,2]
[391774765,1760795453836,-244.97,0.000307,2]
[391774766,1760795453845,-900.0,0.00030712,7]
[391774767,1760795454023,-2100.0,0.00030712,7]
[391774768,1760795454051,-150.0,0.00030764,7]
[391774769,1760795454061,-150.0,0.00030764,7]
[391774770,1760795454075,-234.56968395,0.00030779,2]
[391774771,1760795454086,-6311.41845358,0.00030784,2]
[391774772,1760795454096,-11510.59209923,0.00030789,2]
[391774773,1760795454106,-200.0,0.000308,11]
[391774774,1760795454116,-5000.0,0.00030857,2]
[391774775,1760795454126,-400.0,0.00030858,5]
[391774776,1760795454136,-179.34077467,0.000309,2]
[391774777,1760795454146,-500.0,0.000309,11]
[391774778,1760795454155,-500.0,0.00030908,2]
[391774779,1760795454166,-861.97,0.00030908,2]
[391774780,1760795454176,-1304.03,0.00030908,2]
[391774781,1760795454186,-500.0,0.00030908,2]
[391774782,1760795454195,-755.09,0.00030908,2]
[391774783,1760795454205,-500.0,0.00030908,2]
[391774784,1760795454214,-500.0,0.00030908,2]
[391774785,1760795454224,-1775.36,0.00030908,2]
[391774786,1760795454234,-430.81432136,0.00030908,2]
[391774787,1760795454243,-500.0,0.00030908,2]
[391774788,1760795454253,-500.0,0.00030908,2]
[391774789,1760795454263,-427.46771503,0.00030908,2]
[391774790,1760795454273,-500.0,0.00030908,2]
[391774791,1760795454282,-723.11,0.00030908,2]
[391774792,1760795454292,-500.0,0.00030908,2]
[391774793,1760795454301,-1526.68,0.00030908,2]
[391774794,1760795454311,-500.0,0.00030908,2]
[391774795,1760795454320,-500.0,0.00030908,2]
[391774796,1760795454330,-500.0,0.00030908,2]
[391774797,1760795454339,-500.0,0.00030908,2]
[391774798,1760795454349,-500.0,0.00030908,2]
[391774799,1760795454359,-500.0,0.00030908,2]
[391774800,1760795454369,-185.47090926,0.00030908,2]
[391774801,1760795454378,-500.0,0.00030908,2]
[391774802,1760795454388,-500.0,0.00030908,2]
[391774803,1760795454398,-500.0,0.00030908,2]
[391774804,1760795454407,-12628.57,0.00030908,2]
[391774805,1760795454417,-500.0,0.00030908,2]
[391774806,1760795454426,-168.0,0.00030917,2]
[391774807,1760795454436,-666.0,0.00030936,10]
[391774808,1760795454445,-300.0,0.00030936,10]
[391774809,1760795454458,-500.0,0.00030937,2]
[391774810,1760795454467,-502.24802026,0.00030937,2]
[391774811,1760795454476,-500.0,0.00030937,2]
[391774812,1760795454486,-512.29,0.00030937,2]
[391774813,1760795454495,-500.0,0.00030937,2]
[391774814,1760795454505,-500.0,0.00030937,2]
[391774815,1760795454515,-212.90382368,0.00030937,2]
[391774816,1760795454525,-500.0,0.00030937,2]
[391774817,1760795454535,-500.0,0.00030937,2]
[391774818,1760795454544,-652.72,0.00030937,2]
[391774819,1760795454554,-500.0,0.00030937,2]
[391774820,1760795454563,-389.06700267,0.00030937,2]
[391774821,1760795454573,-360.16881757,0.00030937,2]
[391774822,1760795454583,-500.0,0.00030937,2]
[391774823,1760795454593,-500.0,0.00030937,2]
[391774824,1760795454602,-500.0,0.00030937,2]
[391774825,1760795454612,-500.0,0.00030937,2]
[391774826,1760795454622,-500.0,0.00030937,2]
[391774827,1760795454631,-457.74956153,0.00030937,2]
[391774828,1760795454641,-500.0,0.00030937,2]
[391774829,1760795454650,-500.0,0.00030937,2]
[391774830,1760795454660,-500.0,0.00030937,2]
[391774831,1760795454670,-500.0,0.00030937,2]
[391774832,1760795454679,-500.0,0.00030937,2]
[391774833,1760795454689,-500.0,0.00030937,2]
[391774834,1760795454699,-200.82487533,0.00030937,2]
[391774835,1760795454708,-500.0,0.00030937,2]
[391774836,1760795454718,-308.31,0.00030937,2]
[391774837,1760795454727,-169.57,0.00030937,2]
[391774838,1760795454738,-542.05,0.00030937,2]
[391774839,1760795454748,-451.1,0.00030937,2]
[391774840,1760795454760,-428.12,0.00030937,2]
[391774841,1760795454770,-500.0,0.00030937,2]
[391774842,1760795454779,-203.65,0.00030937,2]
[391774843,1760795454789,-509.94,0.00030937,2]
[391774844,1760795454799,-558.35269259,0.00030937,2]
[391774845,1760795454808,-500.0,0.00030937,2]
[391774846,1760795454818,-500.0,0.00030937,2]
[391774847,1760795454828,-500.0,0.00030937,2]
[391774848,1760795454842,-500.0,0.00030937,2]
[391774849,1760795454852,-500.0,0.00030937,2]
[391774850,1760795454862,-500.0,0.00030937,2]
[391774851,1760795454872,-500.0,0.00030937,2]
[391774852,1760795454882,-500.0,0.00030937,2]
[391774853,1760795454892,-500.0,0.00030937,2]
[391774854,1760795454901,-500.0,0.00030937,2]
[391774855,1760795454911,-463.62,0.00030937,2]
[391774856,1760795454920,-178.91861203,0.00030937,2]
[391774857,1760795454930,-434.78,0.00030937,2]
[391774858,1760795454940,-500.0,0.00030937,2]
[391774859,1760795454950,-500.0,0.00030937,2]
[391774860,1760795454960,-500.0,0.00030937,2]
[391774861,1760795454970,-500.0,0.00030937,2]
[391774862,1760795454979,-500.0,0.00030937,2]
[391774863,1760795454989,-500.0,0.00030937,2]
[391774864,1760795454999,-442.76265478,0.00030937,2]
[391774865,1760795455009,-500.0,0.00030937,2]
[391774866,1760795455019,-151.0,0.00030937,30]
[391774867,1760795455028,-500.0,0.00030937,2]
[391774868,1760795455038,-500.0,0.00030937,2]
[391774869,1760795455048,-500.0,0.00030937,2]
[391774870,1760795455058,-500.0,0.00030937,2]
[391774871,1760795455068,-153.99256321,0.00030937,2]
[391774872,1760795455079,-500.0,0.00030937,2]
[391774873,1760795455089,-500.0,0.00030937,2]
[391774874,1760795455099,-500.0,0.00030937,2]
[391774875,1760795455109,-500.0,0.00030937,2]
[391774876,1760795455121,-500.0,0.00030937,2]
[391774877,1760795455131,-548.18932758,0.00030937,2]
[391774878,1760795455141,-500.0,0.00030937,2]
[391774879,1760795455152,-620.36278442,0.00030937,2]
[391774880,1760795455162,-168.45092,0.00030937,30]
[391774881,1760795455172,-168.45092,0.00030937,30]
[391774882,1760795455182,-168.45092,0.00030937,30]
[391774883,1760795455192,-500.0,0.00030937,2]
[391774884,1760795455201,-168.45092,0.00030937,30]
[391774885,1760795455212,-500.0,0.00030937,2]
[391774886,1760795455223,-782.169204,0.00030937,30]
[391774887,1760795455237,-160.569946,0.00030937,30]
[391774888,1760795455247,-151.0,0.00030937,30]
[391774889,1760795455257,-782.169204,0.00030937,30]
[391774890,1760795455267,-500.0,0.00030937,2]
[391774891,1760795455277,-160.569946,0.00030937,30]
[391774892,1760795455286,-156.913585,0.00030937,30]
[391774893,1760795455295,-782.169204,0.00030937,30]
[391774894,1760795455305,-160.569946,0.00030937,30]
[391774895,1760795455314,-782.169204,0.00030937,30]
[391774896,1760795455324,-160.569946,0.00030937,30]
[391774897,1760795455334,-500.0,0.00030937,2]
[391774898,1760795455344,-627.82169,0.00030937,30]
[391774899,1760795455353,-627.82169,0.00030937,30]
[391774900,1760795455363,-627.82169,0.00030937,30]
[391774901,1760795455373,-627.82169,0.00030937,30]
[391774902,1760795455382,-151.0,0.00030937,30]
[391774903,1760795455392,-210.97320154,0.00030937,2]
[391774904,1760795455402,-500.0,0.00030937,2]
[391774905,1760795455411,-484.2219734,0.00030937,2]
[391774906,1760795455420,-500.0,0.00030937,2]
[391774907,1760795455430,-388.58820357,0.00030937,2]
[391774908,1760795455439,-500.0,0.00030937,2]
[391774909,1760795455449,-151.0,0.00030937,30]
[391774910,1760795455458,-500.0,0.00030937,2]
[391774911,1760795455467,-151.0,0.00030937,30]
[391774912,1760795455476,-151.0,0.00030937,30]
[391774913,1760795455487,-235.90253,0.00030937,30]
[391774914,1760795455496,-500.0,0.00030937,2]
[391774915,1760795455506,-500.0,0.00030937,2]
[391774916,1760795455516,-164.32838044,0.00030937,2]
[391774917,1760795455525,-500.0,0.00030937,2]
[391774918,1760795455535,-500.0,0.00030937,2]
[391774919,1760795455544,-500.0,0.00030937,2]
[391774920,1760795455554,-466.38,0.00030937,2]
[391774921,1760795455564,-500.0,0.00030937,2]
[391774922,1760795455574,-500.0,0.00030937,2]
[391774923,1760795455584,-151.0,0.00030937,30]
[391774924,1760795455594,-151.0,0.00030938,30]
[391774925,1760795455604,-151.0,0.00030938,30]
[391774926,1760795455613,-155.14276,0.00030938,30]
[391774927,1760795455626,-500.0,0.00030939,15]
[391774928,1760795455636,-151.0,0.00030948,30]
[391774929,1760795455646,-187.495025,0.00030948,30]
[391774930,1760795455656,-187.495025,0.00030948,30]
[391774931,1760795455665,-187.495025,0.00030948,30]
[391774932,1760795455675,-187.495025,0.00030948,30]
[391774933,1760795455685,-151.0,0.00030948,30]
[391774934,1760795455696,-500.0,0.00030957,2]
[391774935,1760795455706,-500.0,0.00030957,2]
[391774936,1760795455715,-151.0,0.00030957,30]
[391774937,1760795455724,-151.0,0.00030957,30]
[391774938,1760795455735,-504.89362392,0.00030957,2]
[391774939,1760795455745,-500.0,0.00030957,2]
[391774940,1760795455755,-500.0,0.00030957,2]
[391774941,1760795455768,-500.0,0.00030957,2]
[391774942,1760795455778,-666.0,0.00030957,10]
[391774943,1760795455787,-300.0,0.00030957,10]
[391774944,1760795455797,-917.19,0.00030958,2]
[391774945,1760795455808,-500.0,0.00030958,2]
[391774946,1760795455817,-461.83,0.00030958,2]
[391774947,1760795455828,-500.0,0.00030958,2]
[391774948,1760795455839,-500.0,0.00030958,2]
[391774949,1760795455849,-502.5154339,0.00030958,2]
[391774950,1760795455859,-500.0,0.00030958,2]
[391774951,1760795455868,-339.2224945,0.00030958,2]
[391774952,1760795455879,-632.9930399,0.00030958,2]
[391774953,1760795455888,-500.12722221,0.00030958,2]
[391774954,1760795455898,-500.0,0.00030958,2]
[391774955,1760795455908,-500.0,0.00030958,2]
[391774956,1760795455918,-1839.66,0.00030958,2]
[391774957,1760795455927,-500.0,0.00030958,2]
[391774958,1760795455936,-2145.36,0.00030958,2]
[391774959,1760795455946,-500.0,0.00030958,2]
[391774960,1760795455958,-584.59031836,0.00030958,2]
[391774961,1760795455967,-500.0,0.00030958,2]
[391774962,1760795455976,-151.0,0.00030958,30]
[391774963,1760795455986,-500.0,0.00030958,2]
[391774964,1760795455996,-898.55,0.00030958,2]
[391774965,1760795456006,-356.99988256,0.00030958,2]
[391774966,1760795456019,-500.0,0.00030958,2]
[391774967,1760795456028,-477.95486532,0.00030958,2]
[391774968,1760795456038,-153.8073264,0.00030958,2]
[391774969,1760795456047,-259.3272583,0.00030958,2]
[391774970,1760795456056,-151.0,0.00030958,30]
[391774971,1760795456067,-500.0,0.00030958,2]
[391774972,1760795456076,-725.62,0.00030958,2]
[391774973,1760795456085,-500.0,0.00030958,2]
[391774974,1760795456095,-500.0,0.00030958,2]
[391774975,1760795456104,-500.0,0.00030958,2]
[391774976,1760795456115,-500.0,0.00030958,2]
[391774977,1760795456127,-500.0,0.00030958,2]
[391774978,1760795456138,-500.0,0.00030958,2]
[391774979,1760795456149,-500.0,0.00030958,2]
[391774980,1760795456160,-207.50256007,0.00030958,2]
[391774981,1760795456169,-585.9,0.00030958,2]
[391774982,1760795456179,-500.0,0.00030958,2]
[391774983,1760795456190,-500.0,0.00030958,2]
[391774984,1760795456199,-662.69,0.00030958,2]
[391774985,1760795456208,-500.0,0.00030958,2]
[391774986,1760795456218,-500.0,0.00030958,2]
[391774987,1760795456228,-195.6364565,0.00030958,2]
[391774988,1760795456238,-151.0,0.00030958,30]
[391774989,1760795456247,-506.44,0.00030958,2]
[391774990,1760795456257,-500.0,0.00030958,2]
[391774991,1760795456267,-151.0,0.00030958,30]
[391774992,1760795456277,-635.41963988,0.00030958,2]
[391774993,1760795456287,-500.0,0.00030958,2]
[391774994,1760795456296,-232.38498359,0.00030958,2]
[391774995,1760795456306,-151.10472222,0.00030958,2]
[391774996,1760795456316,-334.02495611,0.00030958,2]
[391774997,1760795456326,-500.0,0.00030958,2]
[391774998,1760795456337,-500.0,0.00030958,2]
[391774999,1760795456347,-500.0,0.00030958,2]
[391775000,1760795456357,-500.0,0.00030958,2]
[391775001,1760795456367,-230.27,0.00030958,2]
[391775002,1760795456376,-543.98761988,0.00030958,2]
[391775003,1760795456387,-591.3507711,0.00030958,2]
[391775004,1760795456396,-500.0,0.00030958,2]
[391775005,1760795456406,-500.0,0.00030958,2]
[391775006,1760795456416,-500.0,0.00030958,2]
[391775007,1760795456427,-500.0,0.00030958,2]
[391775008,1760795456436,-500.0,0.00030958,2]
[391775009,1760795456447,-500.0,0.00030958,2]
[391775010,1760795456456,-647.48233848,0.00030958,2]
[391775011,1760795456466,-500.0,0.00030958,2]
[391775012,1760795456476,-500.0,0.00030958,2]
[391775013,1760795456485,-500.0,0.00030958,2]
[391775014,1760795456495,-591.04413794,0.00030958,2]
[391775015,1760795456504,-500.0,0.00030958,2]
[391775016,1760795456515,-729.42,0.00030958,2]
[391775017,1760795456524,-500.0,0.00030958,2]
[391775018,1760795456533,-500.0,0.00030958,2]
[391775019,1760795456544,-829.6,0.00030958,2]
[391775020,1760795456556,-500.0,0.00030958,2]
[391775021,1760795456567,-500.0,0.00030958,2]
[391775022,1760795456577,-500.0,0.00030958,2]
[391775023,1760795456587,-500.0,0.00030958,2]
[391775024,1760795456604,-500.0,0.00030958,2]
[391775025,1760795456616,-500.0,0.00030958,2]